[Event "December 5 Late 2023"]
[Site "https://www.chess.com"]
[Date "2023.12.05"]
[Round "6"]
[White "Ghosh, Chanchal Kumer"]
[Black "Antonio, Jorge Carlos"]
[Result "1-0"]
[Board "137"]
[TimeControl "180+1"]
[WhiteFideId "10201858"]
[BlackFideId "113190"]
[WhiteElo "2091"]
[BlackElo "2307"]
[WhiteTeam "BAN"]
[BlackTeam "ARG"]
[WhiteClock "0:00:52"]
[BlackClock "0:01:36"]

1. e4 {[%clk 0:03:00]}  c5 {[%clk 0:02:59]} 2. Nf3 {[%clk 0:03:01]}  e6 {[%clk 0:02:59]} 3. d4 {[%clk 0:03:00]}  cxd4 {[%clk 0:02:59]} 4. Nxd4 {[%clk 0:02:59]}  a6 {[%clk 0:02:59]} 5. Nc3 {[%clk 0:02:59]}  Nc6 {[%clk 0:02:59]} 6. Be3 {[%clk 0:02:59]}  Nf6 {[%clk 0:02:58]} 7. Be2 {[%clk 0:02:58]}  Bb4 {[%clk 0:02:57]} 8. f3 {[%clk 0:02:55]}  d5 {[%clk 0:02:56]} 9. Nxc6 {[%clk 0:02:39]}  bxc6 {[%clk 0:02:56]} 10. e5 {[%clk 0:02:39]}  Nd7 {[%clk 0:02:56]} 11. f4 {[%clk 0:02:38]}  c5 {[%clk 0:02:56]} 12. Bd2 {[%clk 0:02:37]}  Bxc3 {[%clk 0:02:55]} 13. bxc3 {[%clk 0:02:31]}  a5 {[%clk 0:02:49]} 14. O-O {[%clk 0:02:30]}  Ba6 {[%clk 0:02:48]} 15. Re1 {[%clk 0:02:28]}  Bxe2 {[%clk 0:02:48]} 16. Qxe2 {[%clk 0:02:26]}  O-O {[%clk 0:02:47]} 17. Kh1 {[%clk 0:02:22]}  c4 {[%clk 0:02:47]} 18. Be3 {[%clk 0:02:17]}  Rb8 {[%clk 0:02:38]} 19. Qg4 {[%clk 0:02:15]}  g6 {[%clk 0:02:37]} 20. h4 {[%clk 0:02:13]}  h5 {[%clk 0:02:37]} 21. Qg3 {[%clk 0:02:09]}  Qc7 {[%clk 0:02:36]} 22. Bd2 {[%clk 0:01:46]}  Nc5 {[%clk 0:02:34]} 23. f5 {[%clk 0:01:39]}  exf5 {[%clk 0:02:30]} 24. Bg5 {[%clk 0:01:30]}  Ne4 {[%clk 0:02:28]} 25. Rxe4 {[%clk 0:01:29]}  dxe4 {[%clk 0:02:27]} 26. Bf6 {[%clk 0:01:19]}  Kh7 {[%clk 0:02:15]} 27. Rf1 {[%clk 0:01:17]}  Rb6 {[%clk 0:02:12]} 28. Rxf5 {[%clk 0:00:55]}  e3 {[%clk 0:01:36]} 29. Rxh5+ {[%clk 0:00:52]} 1-0

[Event "December 5 Late 2023"]
[Site "https://www.chess.com"]
[Date "2023.12.05"]
[Round "6"]
[White "Weisz, Bryan"]
[Black "Lutz, Igor Oscar"]
[Result "1-0"]
[Board "139"]
[TimeControl "180+1"]
[WhiteFideId "30934133"]
[BlackFideId "2110806"]
[WhiteElo "2289"]
[BlackElo "2081"]
[WhiteTeam "USA"]
[BlackTeam "BRA"]
[WhiteClock "0:00:10"]
[BlackClock "0:00:00"]

1. e4 {[%clk 0:03:00]}  c5 {[%clk 0:02:59]} 2. Nf3 {[%clk 0:03:01]}  Nc6 {[%clk 0:02:57]} 3. Bc4 {[%clk 0:03:01]}  e6 {[%clk 0:02:56]} 4. O-O {[%clk 0:03:01]}  Nf6 {[%clk 0:02:55]} 5. Nc3 {[%clk 0:03:01]}  d6 {[%clk 0:02:54]} 6. d4 {[%clk 0:02:57]}  cxd4 {[%clk 0:02:55]} 7. Nxd4 {[%clk 0:02:58]}  Be7 {[%clk 0:02:55]} 8. f4 {[%clk 0:02:55]}  O-O {[%clk 0:02:54]} 9. Kh1 {[%clk 0:02:55]}  Qb6 {[%clk 0:02:35]} 10. Nb3 {[%clk 0:02:52]}  Na5 {[%clk 0:02:24]} 11. Nxa5 {[%clk 0:02:51]}  Qxa5 {[%clk 0:02:24]} 12. f5 {[%clk 0:02:47]}  Qb4 {[%clk 0:02:08]} 13. Qe2 {[%clk 0:02:26]}  Bd7 {[%clk 0:01:24]} 14. fxe6 {[%clk 0:02:01]}  Bxe6 {[%clk 0:01:23]} 15. Bb3 {[%clk 0:01:46]}  Rac8 {[%clk 0:01:11]} 16. Bf4 {[%clk 0:01:45]}  Rfe8 {[%clk 0:01:03]} 17. Rad1 {[%clk 0:01:43]}  Bg4 {[%clk 0:00:48]} 18. Qf2 {[%clk 0:01:00]}  Bxd1 {[%clk 0:00:48]} 19. Nxd1 {[%clk 0:00:59]}  Qxe4 {[%clk 0:00:42]} 20. Ne3 {[%clk 0:00:57]}  h6 {[%clk 0:00:32]} 21. Bg3 {[%clk 0:00:48]}  Rc5 {[%clk 0:00:28]} 22. Bh4 {[%clk 0:00:42]}  Rh5 {[%clk 0:00:24]} 23. Bxf6 {[%clk 0:00:38]}  Bxf6 {[%clk 0:00:22]} 24. Nf5 {[%clk 0:00:34]}  Qe5 {[%clk 0:00:12]} 25. h3 {[%clk 0:00:24]}  d5 {[%clk 0:00:11]} 26. c4 {[%clk 0:00:16]}  d4 {[%clk 0:00:08]} 27. c5 {[%clk 0:00:16]}  Rg5 {[%clk 0:00:07]} 28. Nd6 {[%clk 0:00:15]}  Re7 {[%clk 0:00:06]} 29. Qc2 {[%clk 0:00:10]}  Qd5 {[%clk 0:00:02]} 30. Bxd5 {[%clk 0:00:10]}  Rxd5 {[%clk 0:00:01]} 31. Nf5 {[%clk 0:00:10]}  Rde5 {[%clk 0:00:01]} 32. Nxh6+ {[%clk 0:00:09]}  gxh6 {[%clk 0:00:01]} 33. Rxf6 {[%clk 0:00:10]}  R7e6 {[%clk 0:00:01]} 34. Rxe6 {[%clk 0:00:09]}  Kg7 {[%clk 0:00:00]} 35. Rxe5 {[%clk 0:00:10]} 1-0

[Event "December 5 Late 2023"]
[Site "https://www.chess.com"]
[Date "2023.12.05"]
[Round "6"]
[White "Bullen, Alex"]
[Black "Burke, Paul"]
[Result "1-0"]
[Board "146"]
[TimeControl "180+1"]
[WhiteFideId "1801627"]
[BlackFideId "2605767"]
[WhiteElo "2204"]
[BlackElo "1809"]
[WhiteTeam "WLS"]
[BlackTeam "CAN"]
[WhiteClock "0:02:00"]
[BlackClock "0:01:40"]

1. Na3 {[%clk 0:02:59]}  a6 {[%clk 0:02:58]} 2. g4 {[%clk 0:02:56]}  d6 {[%clk 0:02:58]} 3. Bg2 {[%clk 0:02:56]}  g6 {[%clk 0:02:58]} 4. c3 {[%clk 0:02:53]}  Nd7 {[%clk 0:02:57]} 5. d4 {[%clk 0:02:52]}  Bg7 {[%clk 0:02:57]} 6. e4 {[%clk 0:02:51]}  h6 {[%clk 0:02:57]} 7. h3 {[%clk 0:02:51]}  e5 {[%clk 0:02:57]} 8. Be3 {[%clk 0:02:48]}  Ne7 {[%clk 0:02:56]} 9. Ne2 {[%clk 0:02:45]}  O-O {[%clk 0:02:56]} 10. Ng3 {[%clk 0:02:45]}  f5 {[%clk 0:02:46]} 11. gxf5 {[%clk 0:02:42]}  gxf5 {[%clk 0:02:46]} 12. Nh5 {[%clk 0:02:39]}  f4 {[%clk 0:02:40]} 13. Nxg7 {[%clk 0:02:36]}  Kxg7 {[%clk 0:02:33]} 14. Bd2 {[%clk 0:02:30]}  Nf6 {[%clk 0:02:32]} 15. dxe5 {[%clk 0:02:24]}  dxe5 {[%clk 0:02:31]} 16. Nc4 {[%clk 0:02:25]}  Nc6 {[%clk 0:02:24]} 17. Rg1 {[%clk 0:02:18]}  Kh7 {[%clk 0:02:22]} 18. Qc2 {[%clk 0:02:13]}  Be6 {[%clk 0:02:19]} 19. Na3 {[%clk 0:02:01]}  Qe8 {[%clk 0:02:09]} 20. O-O-O {[%clk 0:02:00]}  b5 {[%clk 0:02:01]} 21. Bxf4 {[%clk 0:02:00]}  exf4 {[%clk 0:01:40]} 22. e5+ {[%clk 0:02:00]} 1-0

[Event "December 5 Late 2023"]
[Site "https://www.chess.com"]
[Date "2023.12.05"]
[Round "6"]
[White "Korol, Dimitry"]
[Black "Gasparyan, David"]
[Result "1-0"]
[Board "148"]
[TimeControl "180+1"]
[WhiteFideId "14108003"]
[BlackFideId "13311980"]
[WhiteElo "2273"]
[BlackElo "2490"]
[WhiteTeam "UKR"]
[BlackTeam "USA"]
[WhiteClock "0:00:12"]
[BlackClock "0:00:17"]

1. d4 {[%clk 0:03:00]}  Nf6 {[%clk 0:02:59]} 2. c4 {[%clk 0:03:01]}  e6 {[%clk 0:02:58]} 3. Nc3 {[%clk 0:03:02]}  d5 {[%clk 0:02:52]} 4. Bg5 {[%clk 0:03:01]}  c6 {[%clk 0:02:52]} 5. cxd5 {[%clk 0:03:00]}  exd5 {[%clk 0:02:50]} 6. e3 {[%clk 0:03:00]}  Be7 {[%clk 0:02:50]} 7. Bd3 {[%clk 0:03:00]}  Nbd7 {[%clk 0:02:50]} 8. Qc2 {[%clk 0:03:00]}  h6 {[%clk 0:02:43]} 9. Bh4 {[%clk 0:03:00]}  O-O {[%clk 0:02:32]} 10. Nge2 {[%clk 0:03:00]}  Re8 {[%clk 0:02:29]} 11. f3 {[%clk 0:03:01]}  Nh5 {[%clk 0:02:17]} 12. Bf2 {[%clk 0:03:00]}  Bg5 {[%clk 0:02:13]} 13. e4 {[%clk 0:02:49]}  dxe4 {[%clk 0:02:00]} 14. fxe4 {[%clk 0:02:50]}  c5 {[%clk 0:01:53]} 15. O-O {[%clk 0:02:45]}  cxd4 {[%clk 0:01:51]} 16. Nd5 {[%clk 0:02:18]}  Ne5 {[%clk 0:01:44]} 17. Bxd4 {[%clk 0:02:07]}  Be6 {[%clk 0:01:36]} 18. Bxe5 {[%clk 0:01:30]}  Bxd5 {[%clk 0:01:35]} 19. Bc7 {[%clk 0:01:30]}  Qd7 {[%clk 0:01:11]} 20. exd5 {[%clk 0:01:29]}  Qxd5 {[%clk 0:01:10]} 21. Bc4 {[%clk 0:00:57]}  Qc5+ {[%clk 0:00:39]} 22. Kh1 {[%clk 0:00:57]}  Qxc7 {[%clk 0:00:17]} 23. Bxf7+ {[%clk 0:00:44]}  Qxf7 {[%clk 0:00:18]} 24. Rxf7 {[%clk 0:00:44]}  Kxf7 {[%clk 0:00:19]} 25. Qb3+ {[%clk 0:00:41]}  Kg6 {[%clk 0:00:18]} 26. Ng3 {[%clk 0:00:38]}  Nxg3+ {[%clk 0:00:15]} 27. Qxg3 {[%clk 0:00:39]}  Kh7 {[%clk 0:00:15]} 28. h3 {[%clk 0:00:38]}  Re7 {[%clk 0:00:14]} 29. Rf1 {[%clk 0:00:36]}  Rae8 {[%clk 0:00:14]} 30. Qd3+ {[%clk 0:00:35]}  Kh8 {[%clk 0:00:14]} 31. a4 {[%clk 0:00:32]}  Re3 {[%clk 0:00:13]} 32. Qb5 {[%clk 0:00:32]}  R8e7 {[%clk 0:00:12]} 33. a5 {[%clk 0:00:32]}  R3e5 {[%clk 0:00:11]} 34. Qb4 {[%clk 0:00:32]}  Bf6 {[%clk 0:00:10]} 35. Qc4 {[%clk 0:00:28]}  Re2 {[%clk 0:00:07]} 36. b4 {[%clk 0:00:26]}  R2e4 {[%clk 0:00:05]} 37. Qc5 {[%clk 0:00:26]}  Kh7 {[%clk 0:00:03]} 38. b5 {[%clk 0:00:24]}  R4e5 {[%clk 0:00:03]} 39. Qc4 {[%clk 0:00:24]}  R5e6 {[%clk 0:00:03]} 40. a6 {[%clk 0:00:19]}  bxa6 {[%clk 0:00:03]} 41. bxa6 {[%clk 0:00:20]}  Rd6 {[%clk 0:00:04]} 42. Qc2+ {[%clk 0:00:19]}  Kh8 {[%clk 0:00:03]} 43. Rb1 {[%clk 0:00:18]}  Ree6 {[%clk 0:00:03]} 44. Qg6 {[%clk 0:00:17]}  Bd8 {[%clk 0:00:02]} 45. Qf7 {[%clk 0:00:16]}  Re7 {[%clk 0:00:02]} 46. Qf8+ {[%clk 0:00:16]}  Kh7 {[%clk 0:00:03]} 47. Qf5+ {[%clk 0:00:16]}  g6 {[%clk 0:00:02]} 48. Qf4 {[%clk 0:00:15]}  Red7 {[%clk 0:00:03]} 49. Rf1 {[%clk 0:00:12]}  Bg5 {[%clk 0:00:03]} 50. Qf8 {[%clk 0:00:11]}  Rd1 {[%clk 0:00:02]} 51. Kh2 {[%clk 0:00:10]}  Rxf1 {[%clk 0:00:02]} 52. Qxf1 {[%clk 0:00:10]}  Rg7 {[%clk 0:00:02]} 53. Qf3 {[%clk 0:00:10]}  Re7 {[%clk 0:00:03]} 54. Qd5 {[%clk 0:00:10]}  Kg7 {[%clk 0:00:04]} 55. Qd4+ {[%clk 0:00:09]}  Bf6 {[%clk 0:00:04]} 56. Qd3 {[%clk 0:00:09]}  Be5+ {[%clk 0:00:05]} 57. g3 {[%clk 0:00:09]}  Bf6 {[%clk 0:00:05]} 58. Kg2 {[%clk 0:00:09]}  Rc7 {[%clk 0:00:05]} 59. h4 {[%clk 0:00:09]}  h5 {[%clk 0:00:05]} 60. Qe4 {[%clk 0:00:08]}  Re7 {[%clk 0:00:05]} 61. Qd5 {[%clk 0:00:08]}  Rf7 {[%clk 0:00:05]} 62. Qc6 {[%clk 0:00:08]}  Re7 {[%clk 0:00:05]} 63. Kf3 {[%clk 0:00:08]}  Rf7 {[%clk 0:00:05]} 64. Ke4 {[%clk 0:00:08]}  Re7+ {[%clk 0:00:05]} 65. Kd5 {[%clk 0:00:08]}  Re5+ {[%clk 0:00:06]} 66. Kd6 {[%clk 0:00:07]}  Re3 {[%clk 0:00:06]} 67. Qb7+ {[%clk 0:00:07]}  Re7 {[%clk 0:00:05]} 68. Qxe7+ {[%clk 0:00:06]}  Bxe7+ {[%clk 0:00:05]} 69. Kxe7 {[%clk 0:00:06]}  Kh6 {[%clk 0:00:06]} 70. Kf6 {[%clk 0:00:05]}  Kh7 {[%clk 0:00:06]} 71. Kf7 {[%clk 0:00:06]}  Kh6 {[%clk 0:00:05]} 72. Kg8 {[%clk 0:00:05]}  g5 {[%clk 0:00:05]} 73. Kf7 {[%clk 0:00:05]}  gxh4 {[%clk 0:00:04]} 74. gxh4 {[%clk 0:00:06]}  Kh7 {[%clk 0:00:04]} 75. Kf6 {[%clk 0:00:06]}  Kh6 {[%clk 0:00:04]} 76. Kf5 {[%clk 0:00:06]}  Kh7 {[%clk 0:00:04]} 77. Kg5 {[%clk 0:00:07]}  Kg8 {[%clk 0:00:05]} 78. Kxh5 {[%clk 0:00:08]}  Kh7 {[%clk 0:00:05]} 79. Kg5 {[%clk 0:00:08]}  Kg7 {[%clk 0:00:06]} 80. Kf5 {[%clk 0:00:08]}  Kf7 {[%clk 0:00:07]} 81. Ke5 {[%clk 0:00:09]}  Kg6 {[%clk 0:00:07]} 82. Kd6 {[%clk 0:00:09]}  Kh5 {[%clk 0:00:08]} 83. Kc7 {[%clk 0:00:10]}  Kxh4 {[%clk 0:00:09]} 84. Kb7 {[%clk 0:00:11]}  Kg5 {[%clk 0:00:10]} 85. Kxa7 {[%clk 0:00:11]}  Kf6 {[%clk 0:00:11]} 86. Kb8 {[%clk 0:00:12]}  Ke7 {[%clk 0:00:11]} 87. a7 {[%clk 0:00:13]}  Kd7 {[%clk 0:00:12]} 88. a8=Q {[%clk 0:00:14]}  Kd6 {[%clk 0:00:13]} 89. Qb7 {[%clk 0:00:14]}  Kc5 {[%clk 0:00:14]} 90. Qc7+ {[%clk 0:00:15]}  Kd5 {[%clk 0:00:14]} 91. Kb7 {[%clk 0:00:15]}  Ke6 {[%clk 0:00:15]} 92. Qc5 {[%clk 0:00:14]}  Kd7 {[%clk 0:00:15]} 93. Qd5+ {[%clk 0:00:14]}  Ke8 {[%clk 0:00:15]} 94. Qh5+ {[%clk 0:00:12]}  Ke7 {[%clk 0:00:16]} 95. Qg6 {[%clk 0:00:13]}  Kd7 {[%clk 0:00:16]} 96. Kb6 {[%clk 0:00:12]}  Ke7 {[%clk 0:00:15]} 97. Kc5 {[%clk 0:00:12]}  Kd7 {[%clk 0:00:16]} 98. Qf6 {[%clk 0:00:12]}  Ke8 {[%clk 0:00:16]} 99. Qg7 {[%clk 0:00:12]}  Kd8 {[%clk 0:00:16]} 100. Kd6 {[%clk 0:00:12]}  Ke8 {[%clk 0:00:17]} 101. Qe7# {[%clk 0:00:12]} 1-0

[Event "December 5 Late 2023"]
[Site "https://www.chess.com"]
[Date "2023.12.05"]
[Round "6"]
[White "Esmeraldas Huachi, Anderson"]
[Black "Smirnov, Timofey"]
[Result "1-0"]
[Board "150"]
[TimeControl "180+1"]
[WhiteFideId "3616363"]
[BlackFideId "24176427"]
[WhiteElo "2417"]
[BlackElo "2043"]
[WhiteTeam "ECU"]
[BlackTeam "RUS"]
[WhiteClock "0:02:32"]
[BlackClock "0:00:00"]

1. d4 {[%clk 0:02:55]}  d5 {[%clk 0:03:00]} 2. c4 {[%clk 0:02:55]}  c6 {[%clk 0:03:00]} 3. cxd5 {[%clk 0:02:55]}  cxd5 {[%clk 0:03:01]} 4. Nc3 {[%clk 0:02:56]}  Nf6 {[%clk 0:03:00]} 5. Nf3 {[%clk 0:02:57]}  Nc6 {[%clk 0:03:00]} 6. Bg5 {[%clk 0:02:57]}  e6 {[%clk 0:02:55]} 7. e3 {[%clk 0:02:57]}  Bd6 {[%clk 0:02:47]} 8. Bd3 {[%clk 0:02:56]}  O-O {[%clk 0:02:45]} 9. O-O {[%clk 0:02:55]}  h6 {[%clk 0:02:44]} 10. Bh4 {[%clk 0:02:53]}  a6 {[%clk 0:02:44]} 11. Rc1 {[%clk 0:02:52]}  Bd7 {[%clk 0:02:39]} 12. Bg3 {[%clk 0:02:50]}  Bxg3 {[%clk 0:02:37]} 13. hxg3 {[%clk 0:02:51]}  b5 {[%clk 0:02:37]} 14. a4 {[%clk 0:02:50]}  b4 {[%clk 0:02:34]} 15. Nb1 {[%clk 0:02:51]}  a5 {[%clk 0:02:29]} 16. Nbd2 {[%clk 0:02:51]}  Rc8 {[%clk 0:02:20]} 17. Nb3 {[%clk 0:02:51]}  Ne4 {[%clk 0:01:53]} 18. Bxe4 {[%clk 0:02:48]}  dxe4 {[%clk 0:01:54]} 19. Nfd2 {[%clk 0:02:48]}  f5 {[%clk 0:01:51]} 20. Nc5 {[%clk 0:02:48]}  Ne7 {[%clk 0:01:40]} 21. Nc4 {[%clk 0:02:45]}  Nd5 {[%clk 0:01:22]} 22. Nb7 {[%clk 0:02:43]}  Qe7 {[%clk 0:01:13]} 23. Nbxa5 {[%clk 0:02:43]}  Ra8 {[%clk 0:00:52]} 24. b3 {[%clk 0:02:36]}  Rfc8 {[%clk 0:00:43]} 25. Nb7 {[%clk 0:02:35]}  Nc3 {[%clk 0:00:40]} 26. Qh5 {[%clk 0:02:35]}  Be8 {[%clk 0:00:34]} 27. Qh4 {[%clk 0:02:35]}  Qxh4 {[%clk 0:00:19]} 28. gxh4 {[%clk 0:02:34]}  Ne2+ {[%clk 0:00:19]} 29. Kh2 {[%clk 0:02:34]}  Nxc1 {[%clk 0:00:20]} 30. Rxc1 {[%clk 0:02:35]}  Rab8 {[%clk 0:00:15]} 31. Nc5 {[%clk 0:02:32]}  Bf7 {[%clk 0:00:12]} 32. Nd6 {[%clk 0:02:31]}  Rc7 {[%clk 0:00:11]} 33. Nb5 {[%clk 0:02:31]}  Rcc8 {[%clk 0:00:09]} 34. Rc4 {[%clk 0:02:31]}  Kf8 {[%clk 0:00:08]} 35. Rxb4 {[%clk 0:02:31]}  Rd8 {[%clk 0:00:06]} 36. a5 {[%clk 0:02:30]}  Be8 {[%clk 0:00:06]} 37. Nxe6+ {[%clk 0:02:29]}  Ke7 {[%clk 0:00:06]} 38. Nxd8 {[%clk 0:02:30]}  Rxb5 {[%clk 0:00:04]} 39. Rxb5 {[%clk 0:02:29]}  Bxb5 {[%clk 0:00:04]} 40. Nb7 {[%clk 0:02:30]}  Kd7 {[%clk 0:00:03]} 41. Nc5+ {[%clk 0:02:31]}  Kc6 {[%clk 0:00:02]} 42. g4 {[%clk 0:02:31]}  g6 {[%clk 0:00:01]} 43. gxf5 {[%clk 0:02:31]}  gxf5 {[%clk 0:00:02]} 44. Kg3 {[%clk 0:02:31]}  Bd3 {[%clk 0:00:00]} 45. Kf4 {[%clk 0:02:32]} 1-0

[Event "December 5 Late 2023"]
[Site "https://www.chess.com"]
[Date "2023.12.05"]
[Round "6"]
[White "Pein, Jonathan"]
[Black "Desideri, Ricardo Maruchi"]
[Result "1-0"]
[Board "151"]
[TimeControl "180+1"]
[WhiteFideId "417092"]
[BlackFideId "2110440"]
[WhiteElo "2367"]
[BlackElo "2014"]
[WhiteTeam "ENG"]
[BlackTeam "BRA"]
[WhiteClock "0:01:40"]
[BlackClock "0:00:53"]

1. e4 {[%clk 0:02:59]}  c5 {[%clk 0:02:08]} 2. Nf3 {[%clk 0:02:55]}  d6 {[%clk 0:02:08]} 3. c4 {[%clk 0:02:54]}  Nf6 {[%clk 0:02:06]} 4. Nc3 {[%clk 0:02:54]}  e5 {[%clk 0:02:06]} 5. g3 {[%clk 0:02:53]}  Nc6 {[%clk 0:02:06]} 6. Bg2 {[%clk 0:02:54]}  Be6 {[%clk 0:02:04]} 7. d3 {[%clk 0:02:53]}  a6 {[%clk 0:02:03]} 8. h3 {[%clk 0:02:53]}  h5 {[%clk 0:02:03]} 9. Ng5 {[%clk 0:02:53]}  Qc7 {[%clk 0:01:50]} 10. Nxe6 {[%clk 0:02:52]}  fxe6 {[%clk 0:01:49]} 11. Bg5 {[%clk 0:02:51]}  O-O-O {[%clk 0:01:48]} 12. a3 {[%clk 0:02:42]}  Be7 {[%clk 0:01:45]} 13. Qa4 {[%clk 0:02:39]}  Kb8 {[%clk 0:01:43]} 14. b4 {[%clk 0:02:38]}  cxb4 {[%clk 0:01:42]} 15. axb4 {[%clk 0:02:39]}  Nd4 {[%clk 0:01:42]} 16. b5 {[%clk 0:02:35]}  Qd7 {[%clk 0:01:40]} 17. bxa6 {[%clk 0:02:31]}  Qxa4 {[%clk 0:01:40]} 18. Rxa4 {[%clk 0:02:32]}  bxa6 {[%clk 0:01:33]} 19. Rxa6 {[%clk 0:02:32]}  Kb7 {[%clk 0:01:31]} 20. Ra2 {[%clk 0:02:32]}  Ra8 {[%clk 0:01:30]} 21. Rb2+ {[%clk 0:02:29]}  Kc6 {[%clk 0:01:27]} 22. O-O {[%clk 0:02:28]}  Ra3 {[%clk 0:01:26]} 23. Nb5 {[%clk 0:02:08]}  Nxb5 {[%clk 0:01:24]} 24. cxb5+ {[%clk 0:02:09]}  Kb7 {[%clk 0:01:18]} 25. Rd1 {[%clk 0:01:49]}  Rc8 {[%clk 0:01:17]} 26. d4 {[%clk 0:01:43]}  exd4 {[%clk 0:00:53]} 27. e5+ {[%clk 0:01:40]} 1-0

[Event "December 5 Late 2023"]
[Site "https://www.chess.com"]
[Date "2023.12.05"]
[Round "6"]
[White "Saim, Mohamed Ilias"]
[Black "Clarke, Matthew"]
[Result "0-1"]
[Board "153"]
[TimeControl "180+1"]
[WhiteFideId "7900465"]
[BlackFideId "3227804"]
[WhiteElo "2000"]
[BlackElo "2239"]
[WhiteTeam "ALG"]
[BlackTeam "AUS"]
[WhiteClock "0:00:04"]
[BlackClock "0:00:08"]

1. d4 {[%clk 0:03:00]}  d5 {[%clk 0:02:59]} 2. c4 {[%clk 0:03:00]}  e6 {[%clk 0:02:59]} 3. Nf3 {[%clk 0:02:59]}  Nf6 {[%clk 0:02:59]} 4. e3 {[%clk 0:03:00]}  Be7 {[%clk 0:02:58]} 5. Nbd2 {[%clk 0:02:58]}  O-O {[%clk 0:02:57]} 6. Bd3 {[%clk 0:02:59]}  dxc4 {[%clk 0:02:54]} 7. Nxc4 {[%clk 0:02:58]}  c5 {[%clk 0:02:49]} 8. O-O {[%clk 0:02:58]}  b5 {[%clk 0:02:37]} 9. Nce5 {[%clk 0:02:57]}  c4 {[%clk 0:02:33]} 10. Bc2 {[%clk 0:02:50]}  Bb7 {[%clk 0:02:33]} 11. Bd2 {[%clk 0:02:38]}  Nbd7 {[%clk 0:02:26]} 12. b3 {[%clk 0:02:37]}  cxb3 {[%clk 0:02:18]} 13. axb3 {[%clk 0:02:36]}  a5 {[%clk 0:02:03]} 14. Qb1 {[%clk 0:02:17]}  h6 {[%clk 0:01:40]} 15. Rc1 {[%clk 0:01:59]}  Qb6 {[%clk 0:01:33]} 16. Bd3 {[%clk 0:01:49]}  Rfb8 {[%clk 0:00:52]} 17. Qb2 {[%clk 0:01:48]}  a4 {[%clk 0:00:50]} 18. bxa4 {[%clk 0:01:37]}  bxa4 {[%clk 0:00:50]} 19. Qxb6 {[%clk 0:01:33]}  Nxb6 {[%clk 0:00:51]} 20. Rc7 {[%clk 0:01:27]}  Bd6 {[%clk 0:00:43]} 21. Rxf7 {[%clk 0:01:19]}  Bxf3 {[%clk 0:00:42]} 22. gxf3 {[%clk 0:01:00]}  Bxe5 {[%clk 0:00:42]} 23. dxe5 {[%clk 0:00:59]}  Kxf7 {[%clk 0:00:42]} 24. exf6 {[%clk 0:00:59]}  gxf6 {[%clk 0:00:39]} 25. Be4 {[%clk 0:00:47]}  Ra7 {[%clk 0:00:29]} 26. Bc3 {[%clk 0:00:34]}  a3 {[%clk 0:00:20]} 27. Ra2 {[%clk 0:00:19]}  Nc4 {[%clk 0:00:17]} 28. Bd3 {[%clk 0:00:17]}  Ne5 {[%clk 0:00:13]} 29. Bc2 {[%clk 0:00:13]}  Rc7 {[%clk 0:00:09]} 30. Ba1 {[%clk 0:00:07]}  Nxf3+ {[%clk 0:00:08]} 31. Kg2 {[%clk 0:00:04]}  Ne1+ {[%clk 0:00:08]} 0-1

[Event "December 5 Late 2023"]
[Site "https://www.chess.com"]
[Date "2023.12.05"]
[Round "6"]
[White "Yushko, Olga"]
[Black "Grbac, Boris"]
[Result "0-1"]
[Board "155"]
[TimeControl "180+1"]
[WhiteFideId "14114500"]
[BlackFideId "14503565"]
[WhiteElo "2112"]
[BlackElo "1925"]
[WhiteTeam "UKR"]
[BlackTeam "CRO"]
[WhiteClock "0:01:25"]
[BlackClock "0:01:49"]

1. d4 {[%clk 0:02:59]}  c5 {[%clk 0:02:58]} 2. d5 {[%clk 0:02:59]}  Nf6 {[%clk 0:02:58]} 3. c4 {[%clk 0:02:59]}  e6 {[%clk 0:02:58]} 4. Nc3 {[%clk 0:02:59]}  exd5 {[%clk 0:02:57]} 5. cxd5 {[%clk 0:03:00]}  d6 {[%clk 0:02:58]} 6. e4 {[%clk 0:03:00]}  g6 {[%clk 0:02:59]} 7. Bd3 {[%clk 0:03:00]}  Bg7 {[%clk 0:02:59]} 8. Nf3 {[%clk 0:03:00]}  O-O {[%clk 0:02:59]} 9. h3 {[%clk 0:02:59]}  a6 {[%clk 0:02:58]} 10. O-O {[%clk 0:02:59]}  b5 {[%clk 0:02:57]} 11. Bg5 {[%clk 0:02:53]}  Nbd7 {[%clk 0:02:56]} 12. Re1 {[%clk 0:02:48]}  Re8 {[%clk 0:02:55]} 13. Bf4 {[%clk 0:02:43]}  Qb6 {[%clk 0:02:54]} 14. e5 {[%clk 0:02:41]}  Nh5 {[%clk 0:02:47]} 15. Bh2 {[%clk 0:02:31]}  Nxe5 {[%clk 0:02:46]} 16. Nxe5 {[%clk 0:02:25]}  Bxe5 {[%clk 0:02:43]} 17. Bxe5 {[%clk 0:02:25]}  Rxe5 {[%clk 0:02:39]} 18. Rxe5 {[%clk 0:02:25]}  dxe5 {[%clk 0:02:39]} 19. Ne4 {[%clk 0:02:07]}  Bf5 {[%clk 0:02:28]} 20. Rc1 {[%clk 0:01:51]}  Bxe4 {[%clk 0:02:18]} 21. Bxe4 {[%clk 0:01:52]}  Nf4 {[%clk 0:02:17]} 22. d6 {[%clk 0:01:46]}  Rd8 {[%clk 0:02:14]} 23. d7 {[%clk 0:01:45]}  Qc7 {[%clk 0:02:10]} 24. g3 {[%clk 0:01:39]}  Rxd7 {[%clk 0:02:08]} 25. Qg4 {[%clk 0:01:30]}  h5 {[%clk 0:01:52]} 26. Qh4 {[%clk 0:01:25]}  Ne2+ {[%clk 0:01:49]} 0-1